bitfinex/quotes_BTCUSD_20250903
["timestamp","ask_amount","ask_price","bid_price","bid_amount"]
[1756927807311,0.17842804,112090.0,112080.0,0.21836702]
[1756927807520,0.66779261,112090.0,112080.0,0.3491498]
[1756927807740,0.66556614,112090.0,112080.0,0.3491498]
[1756927808092,0.4871381,112090.0,112080.0,0.3491498]
[1756927808432,0.69238594,112090.0,112080.0,0.3491498]
[1756927809414,0.69238594,112090.0,112080.0,0.3501498]
[1756927809634,0.0268198,112090.0,112080.0,0.3521698]
[1756927809843,0.0268198,112090.0,112080.0,0.3547998]
[1756927810462,0.0268198,112090.0,112080.0,0.92879389]
[1756927813623,0.34323,112110.0,112100.0,0.19935095]
[1756927813872,0.34528,112110.0,112100.0,0.34923095]
[1756927814075,0.37209527,112110.0,112100.0,0.34923095]
[1756927814561,0.55049148,112110.0,112100.0,0.34923095]
[1756927814805,0.37209527,112110.0,112100.0,0.35125095]
[1756927814986,0.55049148,112110.0,112100.0,0.34923095]
[1756927815367,0.55149148,112110.0,112100.0,0.34923095]
[1756927815906,0.55349148,112110.0,112100.0,0.34923095]
[1756927816350,0.37509527,112110.0,112100.0,0.35125095]
[1756927816755,0.85717337,112110.0,112100.0,0.34923095]
[1756927816958,0.85717337,112110.0,112100.0,0.35125095]
[1756927817164,1.03556958,112110.0,112100.0,0.34923095]
[1756927818204,0.55349148,112110.0,112100.0,0.34923095]
[1756927818409,1.03556958,112110.0,112100.0,0.34923095]
[1756927823342,0.55349148,112110.0,112100.0,0.34923095]
[1756927823495,1.03556958,112110.0,112100.0,0.34923095]
[1756927824008,0.37509527,112110.0,112100.0,0.34923095]
[1756927824354,0.55349148,112110.0,112100.0,0.34923095]
[1756927825476,1.03556958,112110.0,112100.0,0.34923095]
[1756927827372,1.03556958,112110.0,112100.0,0.02093882]
[1756927827546,1.03556958,112110.0,112100.0,0.14964]
[1756927827747,0.17841213,112100.0,112090.0,0.2679526]
[1756927827973,0.00528,112100.0,112090.0,0.3489926]
[1756927828199,0.4873581,112100.0,112090.0,0.3489926]
[1756927828429,0.5141744,112100.0,112090.0,0.3489926]
[1756927830316,0.0320963,112100.0,112090.0,0.3489926]
[1756927830515,0.03432277,112100.0,112090.0,0.3489926]
[1756927831715,0.2127349,112100.0,112090.0,0.17053882]
[1756927831896,0.21050843,112100.0,112090.0,0.34896686]
[1756927832805,0.0320963,112100.0,112090.0,0.34896686]
[1756927833002,0.03432277,112100.0,112090.0,0.34896686]
[1756927833210,0.51640087,112100.0,112090.0,0.34896686]
[1756927833460,0.0320963,112100.0,112090.0,0.34896686]
[1756927833784,0.0320963,112100.0,112090.0,0.35098686]
[1756927833785,0.0288663,112100.0,112090.0,0.35098686]
[1756927833929,0.0320963,112100.0,112090.0,0.35098686]
[1756927834234,0.03432277,112100.0,112090.0,0.20138686]
[1756927834482,0.03432277,112100.0,112090.0,0.34900686]
[1756927834687,0.03432277,112100.0,112090.0,0.35102686]
[1756927834833,0.03432277,112100.0,112090.0,0.34900686]
[1756927835039,1.184453,112100.0,112080.0,0.17849098]
[1756927835253,0.66373614,112090.0,112080.0,0.3491498]
[1756927835451,0.66373614,112090.0,112080.0,0.32821098]
[1756927835662,0.69260541,112090.0,112080.0,0.32821098]
[1756927835885,0.69260541,112090.0,112080.0,0.3491498]
[1756927836076,0.51417737,112090.0,112080.0,0.3491498]
[1756927836501,0.69260541,112090.0,112080.0,0.3491498]
[1756927836727,0.69260541,112090.0,112080.0,0.3501498]
[1756927837517,0.69260541,112090.0,112080.0,0.2004298]
[1756927837718,0.69260541,112090.0,112080.0,0.02198584]
[1756927837919,0.69260541,112090.0,112080.0,0.17166584]
[1756927838244,0.69260541,112090.0,112080.0,0.3501098]
[1756927841543,0.57212377,112090.0,112080.0,0.3501098]
[1756927842101,0.39369573,112090.0,112080.0,0.3501098]
[1756927842703,0.39369573,112090.0,112080.0,0.3522498]
[1756927843119,0.02681927,112090.0,112080.0,0.3522498]
[1756927843325,0.3906422,112090.0,112080.0,0.3522498]
[1756927843526,0.38841573,112090.0,112080.0,0.3522498]
[1756927843724,0.39140573,112090.0,112080.0,0.3522498]
[1756927843924,0.39355573,112090.0,112080.0,0.3522498]
[1756927847032,0.03195927,112090.0,112080.0,0.3522498]
[1756927847209,0.3957822,112090.0,112080.0,0.3522498]
[1756927847412,0.39355573,112090.0,112080.0,0.3522498]
[1756927847963,0.57198377,112090.0,112080.0,0.2004298]
[1756927848178,0.03195927,112090.0,112080.0,0.3501098]
[1756927848372,0.57421024,112090.0,112080.0,0.3501098]
[1756927848574,0.36673646,112090.0,112080.0,0.3501098]
[1756927848996,0.00514,112090.0,112080.0,0.3501098]
[1756927849203,0.36896293,112090.0,112080.0,0.3501098]
[1756927849413,0.36673646,112090.0,112080.0,0.3501098]
[1756927852294,0.36681988,112100.0,112090.0,0.19936686]
[1756927852501,0.36681988,112100.0,112090.0,0.20150686]
[1756927852715,0.73355634,112100.0,112090.0,0.20150686]
[1756927853157,0.37195988,112100.0,112090.0,0.20150686]
[1756927853440,0.55037201,112100.0,112090.0,0.19936686]
[1756927853641,0.55037201,112100.0,112090.0,0.34904686]
[1756927853642,0.91196847,112100.0,112090.0,0.34904686]
[1756927853905,0.73355634,112100.0,112090.0,0.34904686]
[1756927854683,0.36681988,112100.0,112090.0,0.35118686]
[1756927855114,0.72841634,112100.0,112090.0,0.35118686]
[1756927855310,0.90981847,112100.0,112090.0,0.35118686]
[1756927855559,0.73140634,112100.0,112090.0,0.35118686]
[1756927855749,0.90981847,112100.0,112090.0,0.35118686]
[1756927855984,0.91196847,112100.0,112090.0,0.35118686]
[1756927857102,0.91196847,112100.0,112090.0,0.34904686]
[1756927859054,0.91196847,112100.0,112090.0,0.17057882]
[1756927859255,1.27356493,112100.0,112090.0,0.17057882]
[1756927860405,1.27356493,112100.0,112090.0,0.02093882]
[1756927860610,0.17842804,112090.0,112080.0,0.02098584]
[1756927860863,0.69189097,112090.0,112080.0,0.3490298]
[1756927861054,0.6948045,112090.0,112080.0,0.17058584]
[1756927861293,0.6948045,112090.0,112080.0,0.3490298]
[1756927861438,0.6948045,112090.0,112080.0,0.17058584]
[1756927861617,0.6948045,112090.0,112080.0,0.3490298]
[1756927862210,0.6948045,112090.0,112080.0,0.17158584]
[1756927862636,0.6948045,112090.0,112080.0,0.3500298]
[1756927862856,0.5451645,112090.0,112080.0,0.3500298]
[1756927866591,0.5451645,112090.0,112080.0,0.3499498]
[1756927870205,0.5451645,112090.0,112080.0,0.2004298]
[1756927870463,0.5451645,112090.0,112080.0,0.3499098]
[1756927872016,0.36673646,112090.0,112080.0,0.3499098]
[1756927872222,0.00514,112090.0,112080.0,0.3518598]
[1756927872446,1.05945257,112100.0,112090.0,0.17842804]
[1756927872650,1.06161257,112100.0,112090.0,0.17842804]
[1756927872851,0.91217257,112100.0,112090.0,0.17842804]
[1756927873092,0.91217257,112100.0,112090.0,0.32790804]
[1756927873746,1.27376903,112100.0,112090.0,0.32790804]
[1756927875522,0.91217257,112100.0,112090.0,0.32790804]
[1756927875770,0.91216847,112100.0,112090.0,0.32790804]
[1756927880549,1.27376493,112100.0,112090.0,0.32790804]
[1756927883028,1.27376493,112100.0,112090.0,0.14948]
[1756927883467,1.27376493,112100.0,112090.0,0.32790804]
[1756927883695,1.42312493,112100.0,112090.0,0.32790804]
[1756927885757,1.27376493,112100.0,112090.0,0.32790804]
[1756927888896,0.55057201,112100.0,112090.0,0.32790804]
[1756927889278,1.27376493,112100.0,112090.0,0.32790804]
[1756927894341,0.55057201,112100.0,112090.0,0.32790804]
[1756927894568,1.27376493,112100.0,112090.0,0.32790804]
[1756927896232,0.36681988,112100.0,112090.0,0.35079686]
[1756927896452,0.36159646,112100.0,112090.0,0.35079686]
[1756927896718,0.3668168,112110.0,112100.0,0.19935095]
[1756927896930,0.38841326,112110.0,112100.0,0.20130095]
[1756927897353,0.36159646,112110.0,112100.0,0.20130095]
[1756927897771,0.74094751,112120.0,112110.0,0.19933503]
[1756927897950,0.73776751,112120.0,112110.0,0.35040503]
[1756927898428,0.74310751,112120.0,112110.0,0.35040503]
[1756927898843,1.10470397,112120.0,112110.0,0.35040503]
[1756927899028,1.28308427,112120.0,112110.0,0.35040503]
[1756927899245,1.28608427,112120.0,112110.0,0.35040503]
[1756927900444,1.10770397,112120.0,112110.0,0.35040503]
[1756927901063,1.28608427,112120.0,112110.0,0.35040503]
[1756927901481,0.56489135,112120.0,112110.0,0.35040503]
[1756927901689,1.04672549,112120.0,112110.0,0.35040503]
[1756927901910,0.86834519,112120.0,112110.0,0.35040503]
[1756927903917,1.04672549,112120.0,112110.0,0.34845503]
[1756927904323,0.86834519,112120.0,112110.0,0.34845503]
[1756927905094,0.86834519,112120.0,112110.0,0.35042503]
[1756927905293,0.8591886,112120.0,112110.0,0.35042503]
[1756927906297,0.0052,112120.0,112110.0,0.44497102]
[1756927907891,0.0052,112120.0,112110.0,0.29585102]
[1756927908113,0.0052,112120.0,112110.0,0.29322102]
[1756927908323,0.0052,112120.0,112110.0,0.44218102]
[1756927909674,0.0002,112120.0,112110.0,0.44218102]
[1756927910998,0.0022,112120.0,112110.0,0.44218102]
[1756927911538,0.0032,112120.0,112110.0,0.44481102]
[1756927911884,0.0032,112120.0,112110.0,0.44218102]
[1756927914204,0.0032,112120.0,112110.0,0.29322102]
[1756927914438,0.0032,112120.0,112110.0,0.44230102]
[1756927915315,0.0032,112120.0,112110.0,0.29322102]
[1756927915523,0.0032,112120.0,112110.0,0.44226102]
[1756927916595,0.0032,112120.0,112110.0,0.44222102]
[1756927917357,0.0032,112120.0,112110.0,0.44485102]
[1756927923393,0.0032,112120.0,112110.0,0.44222102]
[1756927923533,0.0032,112120.0,112110.0,0.29322102]
[1756927923748,0.00838,112120.0,112110.0,0.29125102]
[1756927923972,0.00838,112120.0,112110.0,0.44021102]
[1756927924190,0.00838,112120.0,112110.0,0.29322102]
[1756927924343,0.00838,112120.0,112110.0,0.44021102]
[1756927924545,0.66859444,112120.0,112110.0,0.11285481]
[1756927924804,0.69374426,112120.0,112110.0,0.14896]
[1756927925126,0.72055675,112120.0,112110.0,0.16989882]
[1756927925485,0.69540693,112120.0,112110.0,0.16989882]
[1756927925665,0.69540693,112120.0,112110.0,0.34829503]
[1756927926336,0.21357279,112120.0,112110.0,0.34829503]
[1756927926538,0.69540693,112120.0,112110.0,0.34829503]
[1756927926787,0.51702663,112120.0,112110.0,0.34829503]
[1756927928173,0.03001249,112120.0,112110.0,0.44218102]
[1756927934685,0.03313249,112120.0,112110.0,0.44218102]
[1756927935373,0.03001249,112120.0,112110.0,0.44218102]
[1756927937353,0.03530249,112120.0,112110.0,0.29125102]
[1756927937539,0.51713663,112120.0,112110.0,0.44033102]
[1756927937944,0.03530249,112120.0,112110.0,0.44033102]
[1756927938478,0.51713663,112120.0,112110.0,0.44033102]
[1756927939547,0.51713663,112120.0,112110.0,0.29125102]
[1756927939900,0.49032414,112120.0,112110.0,0.44029102]
[1756927940379,0.00849,112120.0,112110.0,0.44230102]
[1756927941412,0.00632,112120.0,112110.0,0.44230102]
[1756927941838,0.00849,112120.0,112110.0,0.29326102]
[1756927942054,0.0032,112120.0,112110.0,0.44226102]
[1756927942496,0.00849,112120.0,112110.0,0.44226102]
[1756927943497,0.0032,112120.0,112110.0,0.44226102]
[1756927943701,0.0032,112120.0,112110.0,0.92672516]
[1756927943924,0.0032,112120.0,112110.0,0.44489102]
[1756927944128,0.0032,112120.0,112110.0,0.44226102]
[1756927945087,0.0022,112120.0,112110.0,0.44226102]
[1756927945222,0.0012,112120.0,112110.0,0.44226102]
[1756927946560,0.0002,112120.0,112110.0,0.44226102]
[1756927960639,0.0002,112120.0,112110.0,0.44489102]
[1756927961046,0.0002,112120.0,112110.0,0.44226102]
[1756927961254,0.0002,112120.0,112110.0,0.92409516]
[1756927961489,0.00523,112120.0,112110.0,0.44226102]
[1756927961696,0.00523,112120.0,112110.0,0.80351643]
[1756927963150,0.00523,112120.0,112110.0,0.29326102]
[1756927963327,0.00523,112120.0,112110.0,0.44021102]
[1756927963757,0.00523,112120.0,112110.0,0.80356643]
[1756927963893,0.0002,112120.0,112110.0,0.80356643]
[1756927966466,0.00523,112120.0,112110.0,0.80356643]
[1756927967082,0.00315,112120.0,112110.0,0.80356643]
[1756927967922,0.0002,112120.0,112110.0,0.80356643]
[1756927969040,0.00523,112120.0,112110.0,0.80356643]
[1756927969260,0.36648541,112120.0,112110.0,0.29125102]
[1756927969481,0.36648541,112120.0,112110.0,0.44021102]
[1756927969694,0.75455039,112120.0,112110.0,0.17839621]
[1756927969909,0.93293069,112120.0,112110.0,0.32735621]
[1756927970154,0.93293069,112120.0,112110.0,0.19933503]
[1756927970378,0.57167528,112120.0,112110.0,0.34829503]
[1756927970548,0.39329498,112120.0,112110.0,0.34829503]
[1756927970789,0.57167528,112120.0,112110.0,0.34829503]
[1756927971978,0.39329498,112120.0,112110.0,0.34829503]
[1756927972345,0.57167528,112120.0,112110.0,0.34829503]
[1756927975522,0.39329498,112120.0,112110.0,0.19933503]
[1756927975729,0.39329498,112120.0,112110.0,0.34829503]
[1756927978373,0.03203957,112120.0,112110.0,0.35039503]
[1756927978569,0.39329498,112120.0,112110.0,0.34829503]
[1756927979515,0.39329498,112120.0,112110.0,0.19933503]
[1756927979723,0.39329498,112120.0,112110.0,0.34829503]
[1756927980517,0.39329498,112120.0,112110.0,0.19933503]
[1756927980731,0.39329498,112120.0,112110.0,0.34829503]
[1756927981063,0.03203957,112120.0,112110.0,0.35039503]
[1756927981275,0.39257145,112120.0,112110.0,0.35039503]
[1756927981501,0.02700957,112120.0,112110.0,0.44231102]
[1756927981689,0.02700957,112120.0,112110.0,0.80619643]
[1756927982260,0.0002,112120.0,112110.0,0.80356643]
[1756927982851,0.0002,112120.0,112110.0,0.44231102]
[1756927983081,0.0002,112120.0,112110.0,0.80619643]
[1756927987254,0.0002,112120.0,112110.0,0.44494102]
[1756927987493,0.0002,112120.0,112110.0,0.80619643]
[1756927988211,0.0002,112120.0,112110.0,0.80356643]
[1756927988681,0.00523,112120.0,112110.0,0.44231102]
[1756927990483,0.00523,112120.0,112110.0,0.80356643]
[1756927991211,0.00523,112120.0,112110.0,0.44021102]
[1756927991401,0.36648541,112120.0,112110.0,0.44021102]
[1756927992140,0.36648541,112120.0,112110.0,0.44236102]
[1756927993030,0.00523,112120.0,112110.0,0.44236102]
[1756927995930,0.0002,112120.0,112110.0,0.80624643]
[1756927997722,0.0002,112120.0,112110.0,0.80361643]
[1756927998175,0.00541,112120.0,112110.0,0.29340102]
[1756927998385,0.0002,112120.0,112110.0,0.44236102]
[1756927998765,0.00334,112120.0,112110.0,0.44236102]
[1756927999077,0.00541,112120.0,112110.0,0.44236102]
[1756928002591,0.00334,112120.0,112110.0,0.44236102]
[1756928002798,0.00541,112120.0,112110.0,0.44236102]
[1756928002996,0.00541,112120.0,112110.0,0.80361643]
[1756928003440,0.0002,112120.0,112110.0,0.80361643]
[1756928003611,0.0002,112120.0,112110.0,0.87217643]
[1756928005067,0.0002,112120.0,112110.0,0.87480643]
[1756928005779,0.0002,112120.0,112110.0,0.87217643]
[1756928008258,0.00541,112120.0,112110.0,0.50873102]
[1756928008470,0.00541,112120.0,112110.0,0.51088102]
[1756928009800,0.00541,112120.0,112110.0,0.36196102]
[1756928010009,0.00541,112120.0,112110.0,0.50873102]
[1756928010305,0.00541,112120.0,112110.0,0.51088102]
[1756928014747,0.0002,112120.0,112110.0,0.51088102]
[1756928015013,0.00334,112120.0,112110.0,0.51088102]
[1756928015210,0.00541,112120.0,112110.0,0.51088102]
[1756928017195,0.0002,112120.0,112110.0,0.87213643]
[1756928020964,0.0002,112120.0,112110.0,0.72321643]
[1756928021108,0.0002,112120.0,112110.0,0.87213643]
[1756928023652,0.0002,112120.0,112110.0,0.51088102]
[1756928029285,0.0002,112120.0,112110.0,0.99517855]
[1756928029499,0.0002,112120.0,112110.0,1.07546115]
[1756928031692,0.0002,112120.0,112110.0,1.02198325]
[1756928032333,0.0002,112120.0,112110.0,1.10199273]
[1756928032546,0.0002,112120.0,112110.0,1.02198325]
[1756928032759,0.0002,112120.0,112110.0,0.87306325]
[1756928032963,0.0002,112120.0,112110.0,1.02198325]
[1756928033184,0.0002,112120.0,112110.0,1.10197325]
[1756928033831,0.0002,112120.0,112110.0,1.10297325]
[1756928036646,0.0002,112120.0,112110.0,1.02298325]
[1756928036858,0.0002,112120.0,112110.0,1.02294325]
[1756928037071,0.0002,112120.0,112110.0,1.1352605]
[1756928038484,0.0002,112120.0,112110.0,1.02294325]
[1756928042315,0.0002,112120.0,112110.0,1.41294325]
[1756928042533,0.0002,112120.0,112110.0,2.00692803]
[1756928042740,0.0002,112130.0,112120.0,0.19931912]
[1756928042962,0.0002,112130.0,112120.0,1.00167645]
[1756928043178,0.0002,112130.0,112120.0,1.00643645]
[1756928043643,0.0002,112130.0,112120.0,1.01001004]
[1756928044067,0.0002,112130.0,112120.0,1.49167757]
[1756928045059,0.0002,112130.0,112120.0,1.34279757]
[1756928045290,0.0002,112130.0,112120.0,1.49167757]
[1756928045505,0.0002,112130.0,112120.0,1.01001004]
[1756928045765,0.0002,112130.0,112120.0,0.86113004]
[1756928045995,0.0002,112130.0,112120.0,1.01001004]
[1756928046198,0.0002,112130.0,112120.0,1.01201004]
[1756928046639,0.0002,112130.0,112120.0,1.01301004]
[1756928047504,0.0002,112130.0,112120.0,1.05251064]
[1756928047940,0.0002,112130.0,112120.0,1.53417817]
[1756928049362,0.0002,112130.0,112120.0,1.87417817]
[1756928049579,0.0002,112130.0,112120.0,1.79428436]
[1756928052960,0.0002,112130.0,112120.0,2.05798436]
[1756928053118,0.0002,112140.0,112130.0,0.68097074]
[1756928053330,0.00067032,112140.0,112130.0,1.00154704]
[1756928053533,0.00067032,112140.0,112130.0,1.00355704]
[1756928053797,0.00067032,112140.0,112130.0,1.03035744]
[1756928054304,0.00067032,112140.0,112130.0,1.03298744]
[1756928054817,0.00067032,112140.0,112130.0,1.03035744]
[1756928055028,0.00067032,112140.0,112130.0,1.03135744]
[1756928057396,0.00067032,112140.0,112130.0,0.88251744]
[1756928057605,0.00067032,112140.0,112130.0,1.03135744]
[1756928057818,0.00067032,112140.0,112130.0,1.08398744]
[1756928058657,0.00067032,112140.0,112130.0,1.08135744]
[1756928058870,0.00067032,112140.0,112130.0,1.63559744]
[1756928061044,0.00067032,112140.0,112130.0,1.63822744]
[1756928061302,0.00067032,112140.0,112130.0,1.63559744]
[1756928063761,0.00067032,112140.0,112130.0,1.63822744]
[1756928064090,0.00067032,112140.0,112130.0,1.63559744]
[1756928064537,0.00067032,112140.0,112130.0,1.48675744]
[1756928064760,0.00067032,112140.0,112130.0,1.89925744]
[1756928067443,0.00067032,112140.0,112130.0,1.81943713]
[1756928068822,0.00571032,112140.0,112130.0,1.89737429]
[1756928069088,0.00571032,112140.0,112130.0,1.89938429]
[1756928070555,0.00571032,112140.0,112130.0,1.75058429]
[1756928070770,0.00571032,112140.0,112130.0,1.89938429]
[1756928071783,0.00571032,112140.0,112130.0,1.81943713]
[1756928071989,0.00571032,112140.0,112130.0,1.96797473]
[1756928072198,0.00571032,112140.0,112130.0,1.88799713]
[1756928073508,0.00571032,112140.0,112130.0,1.4063296]
[1756928073713,0.00571032,112140.0,112130.0,1.88799713]
[1756928073943,0.00067032,112140.0,112130.0,1.88799713]
[1756928075690,0.00067032,112140.0,112130.0,2.00031438]
[1756928084403,0.00265032,112140.0,112130.0,1.85151438]
[1756928084531,0.00584032,112140.0,112130.0,2.00031438]
[1756928085516,0.00584032,112140.0,112130.0,1.87969462]
[1756928087378,0.00584032,112140.0,112130.0,1.31783685]
[1756928087601,0.00584032,112140.0,112130.0,1.46663685]
[1756928087811,0.00584032,112140.0,112130.0,1.82768462]
[1756928088539,0.00584032,112140.0,112130.0,1.56398462]
[1756928088959,0.00584032,112140.0,112130.0,1.20289685]
[1756928089570,0.00584032,112140.0,112130.0,1.56394462]
[1756928098104,0.00584032,112140.0,112130.0,1.56600462]
[1756928100225,0.00584032,112140.0,112130.0,1.20495685]
[1756928100451,0.00584032,112140.0,112130.0,1.56600462]
[1756928101907,0.00067032,112140.0,112130.0,1.56600462]
[1756928102122,0.00067032,112140.0,112130.0,1.56863462]
[1756928102739,0.00265032,112140.0,112130.0,1.20495685]
[1756928102938,0.00584032,112140.0,112130.0,1.41518462]
[1756928103153,0.00584032,112140.0,112130.0,1.56394462]
[1756928103524,0.00584032,112140.0,112130.0,1.56600462]
[1756928104311,0.00584032,112140.0,112130.0,1.20495685]
[1756928104499,0.00584032,112140.0,112130.0,1.56600462]
[1756928105430,0.00067032,112140.0,112130.0,1.56600462]
[1756928105648,0.00067032,112140.0,112130.0,1.35176462]
[1756928105859,0.00584032,112140.0,112130.0,0.98865685]
[1756928106068,0.00584032,112140.0,112130.0,1.34970462]
[1756928106281,0.00584032,112140.0,112130.0,1.35176462]
[1756928106532,0.00584032,112140.0,112130.0,0.99071685]
[1756928106734,0.00584032,112140.0,112130.0,1.35176462]
[1756928108788,0.00067032,112140.0,112130.0,1.35176462]
[1756928111472,0.00067032,112140.0,112130.0,1.20300462]
[1756928111719,0.00067032,112140.0,112130.0,1.35176462]
[1756928112963,0.00067032,112140.0,112130.0,0.99071685]
[1756928113179,0.00067032,112140.0,112130.0,1.35176462]
[1756928114517,0.00067032,112140.0,112130.0,0.99071685]
[1756928114727,0.00590032,112140.0,112130.0,1.35176462]
[1756928115537,0.00067032,112140.0,112130.0,1.35176462]
[1756928115948,0.00590032,112140.0,112130.0,1.35176462]
[1756928116367,0.00384032,112140.0,112130.0,1.35176462]
[1756928117028,0.00590032,112140.0,112130.0,1.35176462]
[1756928117662,0.00067032,112140.0,112130.0,1.35176462]
[1756928118051,0.00067032,112140.0,112130.0,0.99071685]
[1756928118314,0.00067032,112140.0,112130.0,1.35176462]
[1756928120177,0.00590032,112140.0,112130.0,0.84195685]
[1756928120460,0.00590032,112140.0,112130.0,1.20094462]
[1756928120664,0.36694809,112140.0,112130.0,0.83989685]
[1756928120880,0.72799586,112140.0,112130.0,0.70197149]
[1756928121100,0.36694809,112140.0,112130.0,0.70197149]
[1756928121317,0.72799586,112140.0,112130.0,0.41999542]
[1756928121523,0.75088586,112140.0,112130.0,0.48856038]
[1756928121992,0.75088586,112140.0,112130.0,0.5093092]
[1756928125940,0.75088586,112140.0,112130.0,0.3605892]
[1756928126127,0.75088586,112140.0,112130.0,0.5093492]
[1756928127739,0.92923435,112140.0,112130.0,0.24792439]
[1756928127963,0.92923435,112140.0,112130.0,0.39668439]
[1756928128180,0.92923435,112140.0,112130.0,0.41762321]
[1756928128600,0.95604214,112140.0,112130.0,0.41762321]
[1756928130227,0.95604214,112140.0,112130.0,0.23925882]
[1756928130540,0.95604214,112140.0,112130.0,0.41762321]
[1756928131183,0.77769365,112140.0,112130.0,0.41762321]
[1756928132248,0.95604214,112140.0,112130.0,0.41762321]
[1756928135588,0.77769365,112140.0,112130.0,0.41762321]
[1756928136015,0.95604214,112140.0,112130.0,0.41762321]
[1756928136412,0.77769365,112140.0,112130.0,0.41762321]
[1756928137044,0.95604214,112140.0,112130.0,0.41762321]
[1756928137719,0.77769365,112140.0,112130.0,0.41762321]
[1756928138378,0.75480365,112140.0,112130.0,0.41762321]
[1756928144111,0.93315214,112140.0,112130.0,0.41762321]
[1756928144540,0.75480365,112140.0,112130.0,0.41762321]
[1756928145577,0.51441988,112140.0,112130.0,0.41762321]
[1756928145963,0.69276837,112140.0,112130.0,0.41762321]
[1756928146546,0.51441988,112140.0,112130.0,0.41762321]
[1756928146899,0.69276837,112140.0,112130.0,0.41762321]
[1756928147093,0.69276837,112140.0,112130.0,0.26886321]
[1756928147301,0.69276837,112140.0,112130.0,0.41762321]
[1756928148114,0.69276837,112140.0,112130.0,0.41662321]
[1756928148970,0.69276837,112140.0,112130.0,0.23825882]
[1756928149172,0.69276837,112140.0,112130.0,0.26786321]
[1756928149386,0.69276837,112140.0,112130.0,0.23825882]
[1756928149647,0.17836439,112130.0,112110.0,0.25587602]
[1756928149861,0.17836439,112130.0,112120.0,0.14876]
[1756928150076,0.51836439,112130.0,112120.0,0.14876]
[1756928150292,0.1783803,112120.0,112110.0,0.26789234]
[1756928150504,0.1815903,112120.0,112110.0,0.41665234]
[1756928150711,0.1837503,112120.0,112110.0,0.41665234]
[1756928150930,0.66546207,112120.0,112110.0,0.41665234]
[1756928151379,0.48708177,112120.0,112110.0,0.41665234]
[1756928151565,0.00537,112120.0,112110.0,0.41665234]
[1756928151739,0.48930824,112120.0,112110.0,0.41665234]
[1756928151946,0.48708177,112120.0,112110.0,0.26789234]
[1756928152170,0.48708177,112120.0,112110.0,0.41665234]
[1756928153208,0.49623474,112120.0,112110.0,0.41665234]
[1756928153706,0.49623474,112120.0,112110.0,0.41874234]
[1756928154431,0.49623474,112120.0,112110.0,0.41665234]
[1756928155969,0.48708177,112120.0,112110.0,0.26789234]
[1756928156148,0.48708177,112120.0,112110.0,0.41874234]
[1756928158379,0.48708177,112120.0,112110.0,0.41665234]
[1756928162095,0.57899776,112120.0,112110.0,0.34809234]
[1756928162312,0.48708177,112120.0,112110.0,0.34809234]
[1756928162567,0.48387177,112120.0,112110.0,0.35018234]
[1756928162775,0.48171177,112120.0,112110.0,0.35018234]
[1756928163783,0.48492177,112120.0,112110.0,0.35018234]
[1756928164092,0.48708177,112120.0,112110.0,0.35018234]
[1756928168500,0.48492177,112120.0,112110.0,0.35018234]
[1756928168736,0.48171177,112120.0,112110.0,0.35018234]
[1756928168944,0.48171177,112120.0,112110.0,0.20142234]
[1756928169142,0.48171177,112120.0,112110.0,0.35018234]
[1756928169320,0.48678177,112120.0,112110.0,0.20142234]
[1756928169520,0.48678177,112120.0,112110.0,0.35018234]
[1756928170211,0.37566187,112130.0,112120.0,0.19931912]
[1756928170417,0.86244364,112130.0,112120.0,0.19931912]
[1756928171441,1.04080803,112130.0,112120.0,0.34807912]
[1756928172004,1.04380803,112130.0,112120.0,0.02093882]
[1756928172208,1.04380803,112130.0,112120.0,0.16969882]
[1756928172382,1.04380803,112130.0,112120.0,0.34807912]
[1756928173172,1.04380803,112130.0,112120.0,0.19931912]
[1756928173372,1.04380803,112130.0,112120.0,0.34807912]
[1756928174135,1.04380803,112130.0,112120.0,0.19931912]
[1756928174350,1.04380803,112130.0,112120.0,0.34807912]
[1756928175496,1.19256803,112130.0,112120.0,0.19931912]
[1756928175656,1.19256803,112130.0,112120.0,0.34807912]
[1756928177115,1.19256803,112130.0,112120.0,0.02093882]
[1756928177321,1.19256803,112130.0,112120.0,0.16969882]
[1756928177925,1.19256803,112130.0,112120.0,0.02093882]
[1756928178138,1.19256803,112130.0,112120.0,0.16969882]
[1756928179821,1.19256803,112130.0,112120.0,0.34807912]
[1756928182386,1.19256803,112130.0,112120.0,0.16969882]
[1756928182665,0.1783803,112120.0,112110.0,0.16969882]
[1756928182840,0.51841068,112110.0,112090.0,0.24698804]
[1756928183189,0.66742037,112100.0,112080.0,0.18736615]
[1756928183407,0.48473177,112090.0,112080.0,0.18736615]
[1756928183612,0.48678177,112090.0,112080.0,0.35706497]
[1756928183812,0.48678177,112090.0,112080.0,0.33812615]
[1756928183813,0.00507,112090.0,112080.0,0.33812615]
[1756928184016,0.48678177,112090.0,112080.0,0.33812615]
[1756928184226,0.48678177,112090.0,112080.0,0.35906497]
[1756928184432,0.48678177,112090.0,112080.0,0.35911199]
[1756928185418,0.49569872,112090.0,112080.0,0.36111199]
[1756928185782,0.49569872,112090.0,112080.0,0.36211199]
[1756928187667,0.49569872,112090.0,112080.0,0.36011199]
[1756928187882,0.01398695,112090.0,112080.0,0.36211199]
[1756928188138,0.49792519,112090.0,112080.0,0.36211199]
[1756928188341,0.49569872,112090.0,112080.0,0.36211199]
[1756928188764,0.49569872,112090.0,112080.0,0.21135199]
[1756928189007,0.01398695,112090.0,112080.0,0.36011199]
[1756928189208,0.49792519,112090.0,112080.0,0.36011199]
[1756928189422,0.49569872,112090.0,112080.0,0.36011199]
[1756928190044,0.67412676,112090.0,112080.0,0.36011199]
[1756928190669,0.67412676,112090.0,112080.0,0.02398584]
[1756928190907,0.67412676,112090.0,112080.0,0.17274584]
[1756928191110,1.04094663,112090.0,112080.0,0.17274584]
[1756928191636,1.04094663,112090.0,112080.0,0.17174584]
[1756928191854,1.04094663,112090.0,112080.0,0.16974584]
[1756928192243,1.04094663,112090.0,112080.0,0.17074584]
[1756928193010,1.04094663,112090.0,112080.0,0.3491898]
[1756928193219,1.04094663,112090.0,112080.0,0.17074584]
[1756928193894,0.55923486,112090.0,112080.0,0.3491898]
[1756928194161,1.04094663,112090.0,112080.0,0.3491898]
[1756928194338,1.04094663,112090.0,112080.0,0.17074584]
[1756928195005,1.04094663,112090.0,112080.0,0.3491898]
[1756928195223,1.18974663,112090.0,112080.0,0.00104702]
[1756928195674,1.04094663,112090.0,112080.0,0.00104702]
[1756928195855,1.18974663,112090.0,112080.0,0.00104702]
[1756928196889,1.04194663,112090.0,112080.0,0.00104702]
[1756928197094,1.19074663,112090.0,112080.0,0.00104702]
[1756928197543,1.19074663,112090.0,112080.0,4.702e-05]
[1756928197803,1.13386262,112090.0,112080.0,4.702e-05]
[1756928198066,1.28366262,112090.0,112080.0,4.702e-05]
[1756928198276,1.33362771,112090.0,112080.0,4.702e-05]
[1756928198488,1.18482771,112090.0,112080.0,4.702e-05]
[1756928198700,1.33362771,112090.0,112080.0,4.702e-05]
[1756928200720,1.18482771,112090.0,112080.0,4.702e-05]